fUSD/lending_fUSD_20250404
["ID","MTS","AMOUNT","RATE_DAILY","PERIOD"]
[357102046,1743742266471,-500.0,0.00050136,100]
[357102047,1743742266480,-500.0,0.00050136,120]
[357102048,1743742266490,-1768.28,0.00050136,120]
[357102049,1743742266499,-500.0,0.00050136,12]
[357102050,1743742266508,-1152.52,0.00050136,120]
[357102051,1743742266518,-2735.4,0.00050136,120]
[357102052,1743742266530,-741.55,0.00050136,120]
[357102053,1743742266540,-500.0,0.00050136,120]
[357102054,1743742266549,-2305.38,0.00050136,120]
[357102055,1743742266559,-1520.4,0.00050136,120]
[357102056,1743742266568,-1181.69,0.00050136,120]
[357102057,1743742266578,-1494.55,0.00050136,120]
[357102058,1743742266588,-2859.57,0.00050136,120]
[357102059,1743742266597,-500.0,0.00050136,120]
[357102060,1743742266607,-1642.16,0.00050136,120]
[357102061,1743742266617,-1845.58,0.00050136,120]
[357102062,1743742266626,-500.0,0.00050136,120]
[357102063,1743742266636,-500.0,0.00050136,120]
[357102064,1743742266646,-500.0,0.00050136,120]
[357102065,1743742266655,-1790.85,0.00050136,120]
[357102066,1743742266665,-725.01,0.00050136,120]
[357102067,1743742266674,-500.0,0.00050136,120]
[357102068,1743742266684,-1795.3,0.00050136,120]
[357102069,1743742266693,-2215.63,0.00050136,120]
[357102070,1743742266703,-500.0,0.00050136,120]
[357102071,1743742266712,-500.0,0.00050136,120]
[357102072,1743742266722,-500.0,0.00050136,120]
[357102073,1743742266732,-500.0,0.00050136,120]
[357102074,1743742266742,-500.0,0.00050136,120]
[357102075,1743742266751,-1621.94,0.00050136,120]
[357102076,1743742266761,-1984.67,0.00050136,120]
[357102077,1743742266771,-500.0,0.00050136,10]
[357102078,1743742266782,-500.0,0.00050136,120]
[357102079,1743742266791,-500.0,0.00050136,120]
[357102080,1743742266801,-1238.29,0.00050136,120]
[357102081,1743742266810,-500.0,0.00050136,120]
[357102082,1743742266820,-2200.62,0.00050136,120]
[357102083,1743742266829,-534.24,0.00050136,120]
[357102084,1743742266839,-500.0,0.00050136,7]
[357102085,1743742266849,-500.0,0.00050136,120]
[357102086,1743742266859,-1910.5,0.00050136,120]
[357102087,1743742266868,-1140.44,0.00050136,120]
[357102088,1743742266882,-2219.86,0.00050136,120]
[357102089,1743742266892,-500.0,0.00050136,120]
[357102090,1743742266901,-500.0,0.00050136,120]
[357102091,1743742266911,-2020.09,0.00050136,120]
[357102092,1743742266920,-2048.88,0.00050136,120]
[357102093,1743742266930,-500.0,0.00050136,120]
[357102094,1743742266940,-804.71,0.00050136,120]
[357102095,1743742266949,-500.0,0.00050136,120]
[357102096,1743742266959,-500.0,0.00050136,120]
[357102097,1743742266968,-634.27,0.00050136,120]
[357102098,1743742266976,-2025.27,0.00050136,120]
[357102099,1743742266986,-558.62,0.00050136,120]
[357102100,1743742266995,-500.0,0.00050136,120]
[357102101,1743742267005,-1033.99,0.00050136,120]
[357102102,1743742267015,-2611.84,0.00050136,120]
[357102103,1743742267024,-500.0,0.00050136,120]
[357102104,1743742267035,-1942.56,0.00050136,120]
[357102105,1743742267046,-1677.91,0.00050136,120]
[357102106,1743742267055,-500.0,0.00050136,2]
[357102107,1743742267065,-624.53,0.00050136,120]
[357102108,1743742267074,-2219.22,0.00050136,120]
[357102109,1743742267083,-2008.94,0.00050136,120]
[357102110,1743742267093,-751.55,0.00050136,120]
[357102111,1743742267102,-1907.67,0.00050136,120]
[357102112,1743742267111,-500.0,0.00050136,120]
[357102113,1743742267120,-500.0,0.00050136,120]
[357102114,1743742267130,-2210.43,0.00050136,120]
[357102115,1743742267139,-1861.33,0.00050136,120]
[357102116,1743742267150,-607.75,0.00050136,120]
[357102117,1743742267159,-10738.0,0.00050136,2]
[357102118,1743742267168,-525.26,0.00050136,120]
[357102119,1743742267178,-127491.97,0.00050136,7]
[357102120,1743742267188,-829.28,0.00050136,120]
[357102121,1743742267197,-500.0,0.00050136,120]
[357102122,1743742267206,-2229.15,0.00050136,120]
[357102123,1743742267215,-583.75,0.00050136,120]
[357102124,1743742267225,-1669.74,0.00050136,120]
[357102125,1743742267234,-500.0,0.00050136,120]
[357102126,1743742267243,-500.0,0.00050136,2]
[357102127,1743742267252,-529.37,0.00050136,120]
[357102128,1743742267261,-500.0,0.00050136,120]
[357102129,1743742267270,-1147.88,0.00050136,120]
[357102130,1743742267280,-500.0,0.00050136,120]
[357102131,1743742267289,-500.0,0.00050136,2]
[357102132,1743742267299,-1575.12,0.00050136,120]
[357102133,1743742267308,-524.81894538,0.00050136,120]
[357102134,1743742267317,-515.53398412,0.00050252,29]
[357102135,1743742267326,-200.0,0.00050254,29]
[357102136,1743742267335,-380.47306355,0.00050258,29]
[357102137,1743742267344,-200.0,0.00050264,29]
[357102138,1743742267353,-200.0,0.00050284,29]
[357102139,1743742267362,-515.53398412,0.00050287,29]
[357102140,1743742267371,-380.47306355,0.00050293,29]
[357102141,1743742267380,-200.0,0.00050302,29]
[357102142,1743742267389,-5034.38683674,0.00050319,35]
[357102143,1743742267398,-200.0,0.00050322,29]
[357102144,1743742267408,-515.53398412,0.00050328,29]
[357102145,1743742267417,-515.53398412,0.00050331,29]
[357102146,1743742267426,-200.0,0.00050335,29]
[357102147,1743742267435,-200.0,0.00050335,29]
[357102148,1743742267444,-380.47306355,0.0005034,29]
[357102149,1743742267453,-200.0,0.00050342,29]
[357102150,1743742267462,-200.0,0.00050342,29]
[357102151,1743742267471,-515.53398412,0.00050376,29]
[357102152,1743742267481,-515.53398412,0.00050394,29]
[357102153,1743742267490,-198.75834778,0.000504,2]
[357102154,1743742267499,-500.0,0.0005041,2]
[357102155,1743742267507,-1627.45,0.0005041,120]
[357102156,1743742267516,-1661.534427,0.0005041,120]
[357102157,1743742267525,-1847.248262,0.0005041,120]
[357102158,1743742267535,-600.0,0.0005041,2]
[357102159,1743742267543,-500.0,0.0005041,3]
[357102160,1743742267553,-580.01609324,0.0005041,120]
[357102161,1743742267562,-500.0,0.0005041,120]
[357102162,1743742267571,-604.20801043,0.0005041,120]
[357102163,1743742267580,-668.69,0.0005041,120]
[357102164,1743742267589,-500.0,0.0005041,120]
[357102165,1743742267598,-500.0,0.0005041,120]
[357102166,1743742267607,-500.0,0.0005041,120]
[357102167,1743742267616,-500.0,0.0005041,120]
[357102168,1743742267625,-500.0,0.0005041,120]
[357102169,1743742267634,-234.07215368,0.0005041,120]
[357102170,1743742267643,-500.0,0.0005041,120]
[357102171,1743742267652,-500.0,0.0005041,120]
[357102172,1743742267661,-1018.55,0.0005041,10]
[357102173,1743742267671,-504.0299819,0.0005041,120]
[357102174,1743742267680,-528.07,0.0005041,120]
[357102175,1743742267689,-500.0,0.0005041,30]
[357102176,1743742267698,-500.0,0.0005041,120]
[357102177,1743742267707,-2000.0,0.0005041,2]
[357102178,1743742267716,-636.7,0.0005041,120]
[357102179,1743742267725,-2104.44,0.0005041,120]
[357102180,1743742267734,-500.0,0.0005041,120]
[357102181,1743742267744,-500.0,0.0005041,120]
[357102182,1743742267753,-222.87730729,0.0005041,120]
[357102183,1743742267763,-1964.9,0.0005041,120]
[357102184,1743742267773,-500.0,0.0005041,120]
[357102185,1743742267782,-3250.94,0.0005041,2]
[357102186,1743742267791,-500.0,0.0005041,120]
[357102187,1743742267800,-1041.18,0.0005041,120]
[357102188,1743742267809,-500.0,0.0005041,120]
[357102189,1743742267818,-1836.7,0.0005041,120]
[357102190,1743742267827,-500.0,0.0005041,120]
[357102191,1743742267836,-500.0,0.0005041,120]
[357102192,1743742267845,-561.86,0.0005041,120]
[357102193,1743742267854,-1026.47,0.0005041,120]
[357102194,1743742267867,-500.0,0.0005041,120]
[357102195,1743742267879,-1708.57,0.0005041,120]
[357102196,1743742267889,-2260.17,0.0005041,120]
[357102197,1743742267898,-1847.64,0.0005041,120]
[357102198,1743742267907,-1600.29,0.0005041,120]
[357102199,1743742267916,-972.82,0.0005041,120]
[357102200,1743742267926,-1667.89,0.0005041,120]
[357102201,1743742267935,-1074.38,0.0005041,30]
[357102202,1743742267944,-2122.56,0.0005041,120]
[357102203,1743742267953,-500.0,0.0005041,120]
[357102204,1743742267962,-500.0,0.0005041,120]
[357102205,1743742267971,-1956.99,0.0005041,120]
[357102206,1743742267980,-1120.02,0.0005041,120]
[357102207,1743742267989,-500.0,0.0005041,120]
[357102208,1743742267998,-1669.42,0.0005041,120]
[357102209,1743742268007,-500.0,0.0005041,120]
[357102210,1743742268016,-500.0,0.0005041,30]
[357102211,1743742268025,-533.22,0.0005041,2]
[357102212,1743742268034,-500.0,0.0005041,120]
[357102213,1743742268043,-2628.48,0.0005041,120]
[357102214,1743742268052,-2109.35,0.0005041,120]
[357102215,1743742268061,-560.52,0.0005041,120]
[357102216,1743742268070,-1936.83,0.0005041,120]
[357102217,1743742268080,-1759.76,0.0005041,120]
[357102218,1743742268091,-2302.46,0.0005041,120]
[357102219,1743742268100,-500.0,0.0005041,120]
[357102220,1743742268109,-1845.54,0.0005041,120]
[357102221,1743742268118,-2235.82,0.0005041,120]
[357102222,1743742268126,-500.0,0.0005041,120]
[357102223,1743742268135,-650.53,0.0005041,120]
[357102224,1743742268144,-2294.51,0.0005041,120]
[357102225,1743742268154,-1764.75,0.0005041,120]
[357102226,1743742268164,-410.34659785,0.0005041,120]
[357102227,1743742268173,-1798.97,0.0005041,120]
[357102228,1743742268182,-2061.78,0.0005041,120]
[357102229,1743742268191,-500.0,0.0005041,120]
[357102230,1743742268200,-2212.69,0.0005041,120]
[357102231,1743742268209,-2600.67,0.0005041,120]
[357102232,1743742268218,-500.0,0.0005041,120]
[357102233,1743742268227,-1758.13,0.0005041,120]
[357102234,1743742268235,-2390.89,0.0005041,120]
[357102235,1743742268245,-500.0,0.0005041,120]
[357102236,1743742268254,-1773.07,0.0005041,120]
[357102237,1743742268263,-1780.62,0.0005041,120]
[357102238,1743742268272,-2213.48,0.0005041,120]
[357102239,1743742268282,-500.0,0.0005041,120]
[357102240,1743742268291,-500.0,0.0005041,120]
[357102241,1743742268301,-1740.8,0.0005041,120]
[357102242,1743742268310,-500.0,0.0005041,120]
[357102243,1743742268319,-1782.21,0.0005041,120]
[357102244,1743742268328,-2008.49,0.0005041,120]
[357102245,1743742268337,-810.96,0.0005041,120]
[357102246,1743742268346,-523.36,0.0005041,120]
[357102247,1743742268355,-2260.47,0.0005041,120]
[357102248,1743742268364,-668.1,0.0005041,120]
[357102249,1743742268374,-500.0,0.0005041,120]
[357102250,1743742268383,-2235.26,0.0005041,120]
[357102251,1743742268392,-2123.04,0.0005041,120]
[357102252,1743742268401,-1337.55,0.0005041,30]
[357102253,1743742268410,-1605.02,0.0005041,120]
[357102254,1743742268419,-500.0,0.0005041,120]
[357102255,1743742268428,-500.0,0.0005041,120]
[357102256,1743742268437,-1657.36,0.0005041,120]
[357102257,1743742268447,-1702.41,0.0005041,120]
[357102258,1743742268459,-1553.62,0.0005041,120]
[357102259,1743742268469,-500.0,0.0005041,120]
[357102260,1743742268478,-500.0,0.0005041,120]
[357102261,1743742268487,-1286.62,0.0005041,120]
[357102262,1743742268496,-500.0,0.0005041,100]
[357102263,1743742268505,-500.0,0.0005041,120]
[357102264,1743742268515,-1768.28,0.0005041,120]
[357102265,1743742268524,-500.0,0.0005041,12]
[357102266,1743742268534,-1152.52,0.0005041,120]
[357102267,1743742268550,-2735.4,0.0005041,120]
[357102268,1743742268560,-741.55,0.0005041,120]
[357102269,1743742268570,-500.0,0.0005041,120]
[357102270,1743742268579,-2305.38,0.0005041,120]
[357102271,1743742268587,-1520.4,0.0005041,120]
[357102272,1743742268596,-1181.69,0.0005041,120]
[357102273,1743742268605,-1494.55,0.0005041,120]
[357102274,1743742268614,-2859.57,0.0005041,120]
[357102275,1743742268623,-535.46286945,0.0005041,120]
[357102276,1743742268632,-1642.16,0.0005041,120]
[357102277,1743742268641,-1845.58,0.0005041,120]
[357102278,1743742268650,-500.0,0.0005041,120]
[357102279,1743742268660,-500.0,0.0005041,120]
[357102280,1743742268669,-500.0,0.0005041,120]
[357102281,1743742268679,-1790.85,0.0005041,120]
[357102282,1743742268688,-725.01,0.0005041,120]
[357102283,1743742268697,-500.0,0.0005041,120]
[357102284,1743742268707,-1795.3,0.0005041,120]
[357102285,1743742268716,-2215.63,0.0005041,120]
[357102286,1743742268725,-500.0,0.0005041,120]
[357102287,1743742268735,-500.0,0.0005041,120]
[357102288,1743742268743,-500.0,0.0005041,120]
[357102289,1743742268752,-500.0,0.0005041,120]
[357102290,1743742268761,-500.0,0.0005041,120]
[357102291,1743742268771,-1621.94,0.0005041,120]
[357102292,1743742268782,-1984.67,0.0005041,120]
[357102293,1743742268791,-500.0,0.0005041,10]
[357102294,1743742268801,-500.0,0.0005041,120]
[357102295,1743742268810,-500.0,0.0005041,120]
[357102296,1743742268819,-1238.29,0.0005041,120]
[357102297,1743742268829,-615.46045509,0.0005041,120]
[357102298,1743742268838,-2200.62,0.0005041,120]
[357102299,1743742268848,-534.24,0.0005041,120]
[357102300,1743742268857,-500.0,0.0005041,7]
[357102301,1743742268867,-500.0,0.0005041,120]
[357102302,1743742268880,-1910.5,0.0005041,120]
[357102303,1743742268889,-1140.44,0.0005041,120]
[357102304,1743742268898,-2219.86,0.0005041,120]
[357102305,1743742268907,-500.0,0.0005041,120]
[357102306,1743742268918,-500.0,0.0005041,120]
[357102307,1743742268927,-2020.09,0.0005041,120]
[357102308,1743742268937,-2048.88,0.0005041,120]
[357102309,1743742268946,-500.0,0.0005041,120]
[357102310,1743742269100,-804.71,0.0005041,120]
[357102311,1743742269110,-500.0,0.0005041,120]
[357102312,1743742269119,-500.0,0.0005041,120]
[357102313,1743742269129,-634.27,0.0005041,120]
[357102314,1743742269138,-2025.27,0.0005041,120]
[357102315,1743742269147,-558.62,0.0005041,120]
[357102316,1743742269156,-500.0,0.0005041,120]
[357102317,1743742269165,-1033.99,0.0005041,120]
[357102318,1743742269174,-2611.84,0.0005041,120]
[357102319,1743742269183,-500.0,0.0005041,120]
[357102320,1743742269192,-1942.56,0.0005041,120]
[357102321,1743742269201,-1677.91,0.0005041,120]
[357102322,1743742269210,-500.0,0.0005041,2]
[357102323,1743742269219,-2219.22,0.0005041,120]
[357102324,1743742269228,-624.53,0.0005041,120]
[357102325,1743742269238,-2008.94,0.0005041,120]
[357102326,1743742269247,-751.55,0.0005041,120]
[357102327,1743742269255,-1907.67,0.0005041,120]
[357102328,1743742269265,-491.12099421,0.0005041,120]
[357102329,1743742269274,-500.0,0.0005041,120]
[357102330,1743742269284,-2210.43,0.0005041,120]
[357102331,1743742269293,-1861.33,0.0005041,120]
[357102332,1743742269303,-607.75,0.0005041,120]
[357102333,1743742269311,-10738.0,0.0005041,2]
[357102334,1743742269321,-525.26,0.0005041,120]
[357102335,1743742269330,-127491.97,0.0005041,7]
[357102336,1743742269340,-829.28,0.0005041,120]
[357102337,1743742269349,-500.0,0.0005041,120]
[357102338,1743742269358,-2229.15,0.0005041,120]
[357102339,1743742269367,-583.75,0.0005041,120]
[357102340,1743742269376,-1669.74,0.0005041,120]
[357102341,1743742269385,-500.0,0.0005041,120]
[357102342,1743742269394,-500.0,0.0005041,2]
[357102343,1743742269404,-529.37,0.0005041,120]
[357102344,1743742269413,-500.0,0.0005041,120]
[357102345,1743742269422,-1147.88,0.0005041,120]
[357102346,1743742269431,-500.0,0.0005041,120]
[357102347,1743742269441,-500.0,0.0005041,2]
[357102348,1743742269450,-1575.12,0.0005041,120]
[357102349,1743742269459,-200.0,0.00050433,29]
[357102350,1743742269468,-515.53398412,0.0005045,29]
[357102351,1743742269477,-200.0,0.00050456,29]
[357102352,1743742269486,-380.47306355,0.00050459,29]
[357102353,1743742269495,-5719.66626602,0.00050471,30]
[357102354,1743742269504,-5000.0,0.00050471,33]
[357102355,1743742269514,-106471.84,0.000505,120]
[357102356,1743742269523,-562.60743977,0.000505,120]
[357102357,1743742269532,-15940.81,0.000505,30]
[357102358,1743742269542,-380.47306355,0.00050509,29]
[357102359,1743742269551,-515.53398412,0.00050515,29]
[357102360,1743742269561,-1054.76,0.00050515,2]
[357102361,1743742269570,-200.0,0.00050525,29]
[357102362,1743742269579,-380.47306355,0.00050556,29]
[357102363,1743742269588,-380.47306355,0.00050559,29]
[357102364,1743742269598,-183.83599936,0.00050584,2]
[357102365,1743742269607,-380.47306355,0.00050595,29]
[357102366,1743742269616,-200.0,0.00050599,29]
[357102367,1743742269625,-150.0,0.00050613,120]
[357102368,1743742269635,-400.0,0.0005067,7]
[357102369,1743742269645,-212.0,0.0005068,30]
[357102370,1743742269655,-209.0,0.0005068,30]
[357102371,1743742269664,-210.0,0.0005068,30]
[357102372,1743742269674,-500.0,0.00050684,2]
[357102373,1743742269683,-1627.45,0.00050684,120]
[357102374,1743742269692,-1661.534427,0.00050684,120]
[357102375,1743742269702,-1847.248262,0.00050684,120]
[357102376,1743742269711,-500.0,0.00050684,3]
[357102377,1743742269720,-500.0,0.00050684,120]
[357102378,1743742269730,-668.69,0.00050684,120]
[357102379,1743742269740,-500.0,0.00050684,120]
[357102380,1743742269749,-500.0,0.00050684,120]
[357102381,1743742269759,-500.0,0.00050684,120]
[357102382,1743742269768,-404.62825005,0.00050684,120]
[357102383,1743742269778,-500.0,0.00050684,120]
[357102384,1743742269789,-544.47003216,0.00050684,120]
[357102385,1743742269799,-500.0,0.00050684,120]
[357102386,1743742269808,-1018.55,0.00050684,10]
[357102387,1743742269817,-528.07,0.00050684,120]
[357102388,1743742269826,-150.0,0.00050684,120]
[357102389,1743742269835,-500.0,0.00050684,30]
[357102390,1743742269845,-500.0,0.00050684,120]
[357102391,1743742269854,-2000.0,0.00050684,2]
[357102392,1743742269864,-636.7,0.00050684,120]
[357102393,1743742269876,-2104.44,0.00050684,120]
[357102394,1743742269887,-500.0,0.00050684,120]
[357102395,1743742269896,-500.0,0.00050684,120]
[357102396,1743742269906,-1964.9,0.00050684,120]
[357102397,1743742269915,-500.0,0.00050684,120]
[357102398,1743742269924,-3250.94,0.00050684,2]
[357102399,1743742269933,-500.0,0.00050684,120]
[357102400,1743742269942,-1041.18,0.00050684,120]
[357102401,1743742269952,-500.0,0.00050684,120]
[357102402,1743742269962,-1836.7,0.00050684,120]
[357102403,1743742269972,-610.56639746,0.00050684,120]
[357102404,1743742269981,-500.0,0.00050684,120]
[357102405,1743742269991,-561.86,0.00050684,120]
[357102406,1743742270000,-1026.47,0.00050684,120]
[357102407,1743742270009,-500.0,0.00050684,120]
[357102408,1743742270019,-1708.57,0.00050684,120]
[357102409,1743742270029,-2260.17,0.00050684,120]
[357102410,1743742270038,-1847.64,0.00050684,120]
[357102411,1743742270048,-1600.29,0.00050684,120]
[357102412,1743742270058,-972.82,0.00050684,120]
[357102413,1743742270067,-1667.89,0.00050684,120]
[357102414,1743742270076,-1074.38,0.00050684,30]
[357102415,1743742270085,-2122.56,0.00050684,120]
[357102416,1743742270095,-500.0,0.00050684,120]
[357102417,1743742270104,-500.0,0.00050684,120]
[357102418,1743742270113,-1956.99,0.00050684,120]
[357102419,1743742270122,-1120.02,0.00050684,120]
[357102420,1743742270131,-500.0,0.00050684,120]
[357102421,1743742270140,-1669.42,0.00050684,120]
[357102422,1743742270150,-500.0,0.00050684,120]
[357102423,1743742270159,-500.0,0.00050684,30]
[357102424,1743742270168,-533.22,0.00050684,2]
[357102425,1743742270177,-500.0,0.00050684,120]
[357102426,1743742270188,-2628.48,0.00050684,120]
[357102427,1743742270198,-2109.35,0.00050684,120]
[357102428,1743742270207,-560.52,0.00050684,120]
[357102429,1743742270216,-1936.83,0.00050684,120]
[357102430,1743742270226,-1759.76,0.00050684,120]
[357102431,1743742270235,-2302.46,0.00050684,120]
[357102432,1743742270244,-500.0,0.00050684,120]
[357102433,1743742270254,-1845.54,0.00050684,120]
[357102434,1743742270263,-2235.82,0.00050684,120]
[357102435,1743742270272,-500.0,0.00050684,120]
[357102436,1743742270282,-650.53,0.00050684,120]
[357102437,1743742270291,-1764.75,0.00050684,120]
[357102438,1743742270300,-2294.51,0.00050684,120]
[357102439,1743742270310,-1798.97,0.00050684,120]
[357102440,1743742270319,-2061.78,0.00050684,120]
[357102441,1743742270329,-500.0,0.00050684,120]
[357102442,1743742270338,-2212.69,0.00050684,120]
[357102443,1743742270347,-2600.67,0.00050684,120]
[357102444,1743742270357,-500.0,0.00050684,120]
[357102445,1743742270367,-1758.13,0.00050684,120]
[357102446,1743742270376,-2390.89,0.00050684,120]
[357102447,1743742270385,-500.0,0.00050684,120]
[357102448,1743742270395,-1773.07,0.00050684,120]
[357102449,1743742270405,-1780.62,0.00050684,120]
[357102450,1743742270414,-2213.48,0.00050684,120]
[357102451,1743742270423,-500.0,0.00050684,120]
[357102452,1743742270433,-500.0,0.00050684,120]
[357102453,1743742270443,-1740.8,0.00050684,120]
[357102454,1743742270452,-500.0,0.00050684,120]
[357102455,1743742270461,-1782.21,0.00050684,120]
[357102456,1743742270471,-2008.49,0.00050684,120]
[357102457,1743742270480,-810.96,0.00050684,120]
[357102458,1743742270489,-523.36,0.00050684,120]
[357102459,1743742270499,-2260.47,0.00050684,120]
[357102460,1743742270508,-668.1,0.00050684,120]
[357102461,1743742270518,-500.0,0.00050684,120]
[357102462,1743742270529,-2235.26,0.00050684,120]
[357102463,1743742270538,-2123.04,0.00050684,120]
[357102464,1743742270548,-1337.55,0.00050684,30]
[357102465,1743742270557,-1605.02,0.00050684,120]
[357102466,1743742270566,-500.0,0.00050684,120]
[357102467,1743742270576,-500.0,0.00050684,120]
[357102468,1743742270585,-1657.36,0.00050684,120]
[357102469,1743742270595,-1702.41,0.00050684,120]
[357102470,1743742270604,-1553.62,0.00050684,120]
[357102471,1743742270614,-500.0,0.00050684,120]
[357102472,1743742270623,-500.0,0.00050684,120]
[357102473,1743742270633,-1286.62,0.00050684,120]
[357102474,1743742270643,-500.0,0.00050684,100]
[357102475,1743742270653,-500.0,0.00050684,120]
[357102476,1743742270663,-1768.28,0.00050684,120]
[357102477,1743742270672,-500.0,0.00050684,12]
[357102478,1743742270682,-1152.52,0.00050684,120]
[357102479,1743742270691,-2735.4,0.00050684,120]
[357102480,1743742270701,-741.55,0.00050684,120]
[357102481,1743742270711,-500.0,0.00050684,120]
[357102482,1743742270720,-2305.38,0.00050684,120]
[357102483,1743742270730,-1520.4,0.00050684,120]
[357102484,1743742270739,-1181.69,0.00050684,120]
[357102485,1743742270749,-1494.55,0.00050684,120]
[357102486,1743742270759,-2859.57,0.00050684,120]
[357102487,1743742270769,-1642.16,0.00050684,120]
[357102488,1743742270780,-1845.58,0.00050684,120]
[357102489,1743742270790,-487.93772755,0.00050684,120]
[357102490,1743742270800,-500.0,0.00050684,120]
[357102491,1743742270809,-500.0,0.00050684,120]
[357102492,1743742270818,-1790.85,0.00050684,120]
[357102493,1743742270828,-725.01,0.00050684,120]
[357102494,1743742270837,-500.0,0.00050684,120]
[357102495,1743742270847,-1795.3,0.00050684,120]
[357102496,1743742270856,-2215.63,0.00050684,120]
[357102497,1743742270866,-500.0,0.00050684,120]
[357102498,1743742270878,-500.0,0.00050684,120]
[357102499,1743742270888,-500.0,0.00050684,120]
[357102500,1743742270897,-500.0,0.00050684,120]
[357102501,1743742270908,-500.0,0.00050684,120]
[357102502,1743742270918,-1621.94,0.00050684,120]
[357102503,1743742270928,-1984.67,0.00050684,120]
[357102504,1743742270938,-500.0,0.00050684,10]
[357102505,1743742270948,-500.0,0.00050684,120]
[357102506,1743742270959,-500.0,0.00050684,120]
[357102507,1743742270968,-1238.29,0.00050684,120]
[357102508,1743742270978,-2200.62,0.00050684,120]
[357102509,1743742270987,-534.24,0.00050684,120]
[357102510,1743742270997,-500.0,0.00050684,7]
[357102511,1743742271006,-500.0,0.00050684,120]
[357102512,1743742271016,-1910.5,0.00050684,120]
[357102513,1743742271025,-1140.44,0.00050684,120]
[357102514,1743742271035,-2219.86,0.00050684,120]
[357102515,1743742271044,-500.0,0.00050684,120]
[357102516,1743742271054,-500.0,0.00050684,120]
[357102517,1743742271063,-2020.09,0.00050684,120]
[357102518,1743742271072,-2048.88,0.00050684,120]
[357102519,1743742271082,-500.0,0.00050684,120]
[357102520,1743742271091,-804.71,0.00050684,120]
[357102521,1743742271101,-529.49737016,0.00050684,120]
[357102522,1743742271110,-500.0,0.00050684,120]
[357102523,1743742271119,-2025.27,0.00050684,120]
[357102524,1743742271129,-634.27,0.00050684,120]
[357102525,1743742271139,-558.62,0.00050684,120]
[357102526,1743742271149,-500.0,0.00050684,120]
[357102527,1743742271158,-1033.99,0.00050684,120]
[357102528,1743742271168,-2611.84,0.00050684,120]
[357102529,1743742271177,-500.0,0.00050684,120]
[357102530,1743742271187,-1942.56,0.00050684,120]
[357102531,1743742271196,-1677.91,0.00050684,120]
[357102532,1743742271206,-615.26116738,0.00050684,2]
[357102533,1743742271216,-624.53,0.00050684,120]
[357102534,1743742271225,-2219.22,0.00050684,120]
[357102535,1743742271234,-2008.94,0.00050684,120]
[357102536,1743742271243,-751.55,0.00050684,120]
[357102537,1743742271253,-1907.67,0.00050684,120]
[357102538,1743742271263,-500.0,0.00050684,120]
[357102539,1743742271272,-2210.43,0.00050684,120]
[357102540,1743742271282,-1861.33,0.00050684,120]
[357102541,1743742271291,-607.75,0.00050684,120]
[357102542,1743742271301,-10738.0,0.00050684,2]
[357102543,1743742271311,-525.26,0.00050684,120]
[357102544,1743742271320,-127491.97,0.00050684,7]
[357102545,1743742271330,-829.28,0.00050684,120]